fUST/lending_fUST_20250614
["ID","MTS","AMOUNT","RATE_DAILY","PERIOD"]
[365761062,1749886239750,-415.83528251,0.00021095,4]
[365761063,1749886239760,-573.5839524,0.00021095,4]
[365761064,1749886239769,-440.0,0.00021095,4]
[365761065,1749886239779,-460.0,0.00021095,2]
[365761066,1749886239789,-500.0,0.00021095,4]
[365761067,1749886239798,-618.1790528,0.00021095,4]
[365761068,1749886239808,-349.65993925,0.00021095,4]
[365761069,1749886239818,-460.0,0.00021095,4]
[365761070,1749886239829,-1009.33,0.00021095,4]
[365761071,1749886239838,-460.0,0.00021095,4]
[365761072,1749886239848,-460.0,0.00021095,4]
[365761073,1749886239858,-460.0,0.00021095,4]
[365761074,1749886239868,-460.0,0.00021095,4]
[365761075,1749886239878,-460.0,0.00021095,4]
[365761076,1749886239888,-460.0,0.00021095,4]
[365761077,1749886239897,-753.81,0.00021095,4]
[365761078,1749886239907,-521.99,0.00021095,4]
[365761079,1749886239916,-227.32093827,0.00021095,4]
[365761080,1749886239926,-996.51,0.00021095,4]
[365761081,1749886239935,-460.0,0.00021095,4]
[365761082,1749886239944,-460.0,0.00021095,4]
[365761083,1749886239953,-460.0,0.00021095,4]
[365761084,1749886239962,-460.0,0.00021095,4]
[365761085,1749886239972,-815.38,0.00021095,4]
[365761086,1749886239981,-460.0,0.00021095,4]
[365761087,1749886239991,-460.0,0.00021095,4]
[365761088,1749886240000,-460.0,0.00021095,4]
[365761089,1749886240010,-460.0,0.00021095,4]
[365761090,1749886240019,-544.70462059,0.00021095,4]
[365761091,1749886240029,-498.76,0.00021095,4]
[365761092,1749886240038,-4245.83,0.00021095,4]
[365761093,1749886240047,-460.0,0.00021095,4]
[365761094,1749886240057,-460.0,0.00021095,4]
[365761095,1749886240066,-1010.94,0.00021095,4]
[365761096,1749886240075,-460.0,0.00021095,4]
[365761097,1749886240084,-580.63,0.00021095,4]
[365761098,1749886240094,-662.23,0.00021095,4]
[365761099,1749886240103,-460.0,0.00021095,4]
[365761100,1749886240112,-460.0,0.00021095,4]
[365761101,1749886240121,-929.11,0.00021095,4]
[365761102,1749886240131,-1448.55,0.00021095,4]
[365761103,1749886240140,-460.0,0.00021095,4]
[365761104,1749886240150,-460.0,0.00021095,4]
[365761105,1749886240159,-526.27,0.00021095,4]
[365761106,1749886240169,-512.73,0.00021095,4]
[365761107,1749886240179,-1154.0,0.000211,2]
[365761108,1749886240189,-807.90356577,0.00021269,2]
[365761109,1749886240198,-831.82,0.00021358,3]
[365761110,1749886240207,-277.26,0.00021359,3]
[365761111,1749886240216,-390.0,0.00021369,4]
[365761112,1749886240226,-440.0,0.00021369,4]
[365761113,1749886240235,-440.0,0.00021369,4]
[365761114,1749886240244,-342.22874961,0.00021369,4]
[365761116,1749886240254,-460.0,0.00021369,4]
[365761117,1749886240263,-444.97,0.00021369,4]
[365761119,1749886240273,-287.7642072,0.00021369,4]
[365761120,1749886240283,-460.0,0.00021369,4]
[365761122,1749886240292,-460.0,0.00021369,4]
[365761123,1749886240302,-460.0,0.00021369,4]
[365761124,1749886240312,-504.11115917,0.00021369,4]
[365761125,1749886240321,-370.96237727,0.00021369,4]
[365761126,1749886240331,-460.0,0.00021369,4]
[365761127,1749886240341,-400.0,0.00021369,4]
[365761128,1749886240351,-520.25780888,0.00021369,4]
[365761129,1749886240360,-460.0,0.00021369,4]
[365761130,1749886240370,-518.41372255,0.00021369,4]
[365761131,1749886240380,-290.80096579,0.00021369,4]
[365761132,1749886240390,-460.0,0.00021369,4]
[365761133,1749886240399,-440.0,0.00021369,4]
[365761134,1749886240410,-460.0,0.00021369,4]
[365761135,1749886240419,-460.0,0.00021369,4]
[365761136,1749886240429,-474.33329405,0.00021369,4]
[365761137,1749886240439,-460.0,0.00021369,4]
[365761138,1749886240449,-460.0,0.00021369,4]
[365761139,1749886240458,-460.0,0.00021369,4]
[365761140,1749886240468,-460.0,0.00021369,2]
[365761141,1749886240477,-460.0,0.00021369,4]
[365761142,1749886240487,-1009.33,0.00021369,4]
[365761143,1749886240498,-460.0,0.00021369,4]
[365761144,1749886240507,-460.0,0.00021369,4]
[365761145,1749886240517,-460.0,0.00021369,4]
[365761146,1749886240527,-460.0,0.00021369,4]
[365761147,1749886240537,-753.81,0.00021369,4]
[365761148,1749886240547,-521.99,0.00021369,4]
[365761149,1749886240556,-996.51,0.00021369,4]
[365761150,1749886240566,-460.0,0.00021369,4]
[365761151,1749886240575,-460.0,0.00021369,4]
[365761152,1749886240584,-815.38,0.00021369,4]
[365761153,1749886240593,-227.19728997,0.00021369,4]
[365761154,1749886240603,-460.0,0.00021369,4]
[365761155,1749886240613,-460.0,0.00021369,4]
[365761156,1749886240623,-460.0,0.00021369,4]
[365761157,1749886240633,-498.76,0.00021369,4]
[365761158,1749886240642,-4245.83,0.00021369,4]
[365761159,1749886240652,-460.0,0.00021369,4]
[365761160,1749886240663,-1010.94,0.00021369,4]
[365761161,1749886240672,-580.63,0.00021369,4]
[365761162,1749886240681,-662.23,0.00021369,4]
[365761163,1749886240691,-460.0,0.00021369,4]
[365761164,1749886240702,-460.0,0.00021369,4]
[365761165,1749886240711,-929.11,0.00021369,4]
[365761166,1749886240721,-1448.55,0.00021369,4]
[365761167,1749886240732,-460.0,0.00021369,4]
[365761168,1749886240741,-526.27,0.00021369,4]
[365761169,1749886240751,-3767.74,0.000214,2]
[365761170,1749886240760,-1519.8,0.00021413,2]
[365761171,1749886240770,-505.39986483,0.00021465,2]
[365761172,1749886240778,-546.32981503,0.00021465,2]
[365761173,1749886240787,-296.48612242,0.00021542,2]
[365761174,1749886240796,-541.61597088,0.00021562,2]
[365761176,1749886240805,-502.21576639,0.00021562,2]
[365761177,1749886240814,-500.0,0.00021621,2]
[365761178,1749886240823,-500.0,0.00021621,2]
[365761179,1749886240832,-500.0,0.00021642,2]
[365761180,1749886240841,-160.0,0.00021642,2]
[365761181,1749886240850,-460.0,0.00021643,4]
[365761182,1749886240859,-460.0,0.00021643,4]
[365761183,1749886240867,-460.0,0.00021643,4]
[365761184,1749886240876,-400.0,0.00021643,4]
[365761185,1749886240886,-374.76501844,0.00021643,4]
[365761186,1749886240895,-460.0,0.00021643,4]
[365761187,1749886240904,-460.0,0.00021643,4]
[365761188,1749886240913,-202.98,0.00021643,4]
[365761189,1749886240922,-460.0,0.00021643,4]
[365761190,1749886240932,-460.0,0.00021643,2]
[365761191,1749886240941,-460.0,0.00021643,4]
[365761192,1749886240950,-1009.33,0.00021643,4]
[365761193,1749886240959,-174.4262061,0.00021643,4]
[365761194,1749886240968,-460.0,0.00021643,4]
[365761195,1749886240977,-460.0,0.00021643,4]
[365761196,1749886240986,-460.0,0.00021643,4]
[365761197,1749886240996,-753.81,0.00021643,4]
[365761198,1749886241005,-521.99,0.00021643,4]
[365761199,1749886241014,-996.51,0.00021643,4]
[365761200,1749886241023,-460.0,0.00021643,4]
[365761201,1749886241032,-460.0,0.00021643,4]
[365761202,1749886241041,-815.38,0.00021643,4]
[365761203,1749886241050,-460.0,0.00021643,4]
[365761204,1749886241060,-460.0,0.00021643,4]
[365761205,1749886241069,-498.76,0.00021643,4]
[365761206,1749886241078,-4245.83,0.00021643,4]
[365761207,1749886241087,-460.0,0.00021643,4]
[365761208,1749886241096,-1010.94,0.00021643,4]
[365761209,1749886241105,-580.63,0.00021643,4]
[365761210,1749886241115,-662.23,0.00021643,4]
[365761211,1749886241124,-460.0,0.00021643,4]
[365761212,1749886241133,-272.3737035,0.00021643,4]
[365761213,1749886241142,-929.11,0.00021643,4]
[365761214,1749886241151,-1448.55,0.00021643,4]
[365761215,1749886241160,-460.0,0.00021643,4]
[365761216,1749886241170,-526.27,0.00021643,4]
[365761217,1749886241179,-420.0,0.00021798,2]
[365761218,1749886241188,-9091.93052012,0.00021817,2]
[365761219,1749886241197,-807.90356575,0.00021827,2]
[365761220,1749886241206,-13885.83916438,0.000219,2]
[365761221,1749886241215,-1376.20692935,0.000219,6]
[365761222,1749886241224,-107046.87696432,0.0002191,2]
[365761223,1749886241233,-460.0,0.00021917,4]
[365761224,1749886241242,-259.40460734,0.00021917,4]
[365761225,1749886241251,-460.0,0.00021917,4]
[365761226,1749886241260,-460.0,0.00021917,2]
[365761227,1749886241269,-329.0,0.00021917,2]
[365761228,1749886241278,-460.0,0.00021917,4]
[365761229,1749886241287,-1009.33,0.00021917,4]
[365761230,1749886241296,-460.0,0.00021917,4]
[365761231,1749886241305,-460.0,0.00021917,4]
[365761232,1749886241315,-460.0,0.00021917,4]
[365761233,1749886241324,-753.81,0.00021917,4]
[365761234,1749886241333,-521.99,0.00021917,4]
[365761235,1749886241342,-996.51,0.00021917,4]
[365761236,1749886241351,-460.0,0.00021917,4]
[365761237,1749886241360,-460.0,0.00021917,4]
[365761238,1749886241369,-815.38,0.00021917,4]
[365761239,1749886241378,-460.0,0.00021917,4]
[365761240,1749886241388,-460.0,0.00021917,4]
[365761241,1749886241398,-498.76,0.00021917,4]
[365761242,1749886241407,-4245.83,0.00021917,4]
[365761243,1749886241416,-460.0,0.00021917,4]
[365761244,1749886241425,-1010.94,0.00021917,4]
[365761245,1749886241434,-580.63,0.00021917,4]
[365761246,1749886241443,-662.23,0.00021917,4]
[365761247,1749886241452,-460.0,0.00021917,4]
[365761248,1749886241462,-1448.55,0.00021917,4]
[365761249,1749886241471,-460.0,0.00021917,4]
[365761250,1749886241480,-929.11,0.00021917,4]
[365761251,1749886241489,-526.27,0.00021917,4]
[365761252,1749886241498,-609.2934574,0.00021958,2]
[365761253,1749886241507,-500.0,0.00021973,2]
[365761254,1749886241516,-500.0,0.00021973,2]
[365761255,1749886241525,-500.0,0.00021973,2]
[365761256,1749886241535,-411.48642666,0.00021973,2]
[365761257,1749886241544,-168.0,0.00022,2]
[365761258,1749886241554,-110336.36,0.00022,7]
[365761259,1749886241563,-213.28201367,0.00022,7]
[365761260,1749886241572,-1376.20692931,0.00022003,6]
[365761261,1749886241581,-12533.30537164,0.00022055,2]
[365761262,1749886241591,-160.0,0.00022055,2]
[365761263,1749886241600,-213.28201367,0.00022055,2]
[365761264,1749886241609,-424.40141186,0.00022055,2]
[365761265,1749886241618,-296.48612242,0.00022094,2]
[365761266,1749886241627,-78823.23,0.000221,2]
[365761267,1749886241636,-1376.20692931,0.00022107,6]
[365761268,1749886241645,-168.0,0.00022139,2]
[365761269,1749886241657,-168.0,0.00022143,2]
[365761270,1749886241667,-460.0,0.00022191,4]
[365761271,1749886241676,-460.0,0.00022191,4]
[365761272,1749886241686,-460.0,0.00022191,2]
[365761273,1749886241695,-460.0,0.00022191,4]
[365761274,1749886241704,-1009.33,0.00022191,4]
[365761275,1749886241714,-426.23682142,0.00022191,4]
[365761276,1749886241724,-460.0,0.00022191,4]
[365761277,1749886241735,-460.0,0.00022191,4]
[365761278,1749886241744,-753.81,0.00022191,4]
[365761279,1749886241753,-521.99,0.00022191,4]
[365761280,1749886241762,-996.51,0.00022191,4]
[365761281,1749886241771,-460.0,0.00022191,4]
[365761282,1749886241780,-460.0,0.00022191,4]
[365761283,1749886241789,-815.38,0.00022191,4]
[365761284,1749886241798,-460.0,0.00022191,4]
[365761285,1749886241807,-460.0,0.00022191,4]
[365761286,1749886241817,-498.76,0.00022191,4]
[365761287,1749886241825,-4245.83,0.00022191,4]
[365761288,1749886241835,-460.0,0.00022191,4]
[365761289,1749886241844,-1010.94,0.00022191,4]
[365761290,1749886241853,-580.63,0.00022191,4]
[365761291,1749886241863,-662.23,0.00022191,4]
[365761292,1749886241872,-349.12388858,0.00022191,4]
[365761293,1749886241881,-1448.55,0.00022191,4]
[365761294,1749886241890,-460.0,0.00022191,4]
[365761295,1749886241900,-929.11,0.00022191,4]
[365761297,1749886242002,-526.27,0.00022191,4]
[365761298,1749886242013,-1154.0,0.000222,7]
[365761300,1749886242022,-1376.20692931,0.0002221,6]
[365761301,1749886242032,-845.10789306,0.0002222,2]
[365761303,1749886242042,-160.0,0.0002222,2]
[365761304,1749886242052,-160.0,0.0002222,2]
[365761305,1749886242061,-160.0,0.00022222,2]
[365761307,1749886242071,-160.0,0.00022222,2]
[365761308,1749886242080,-229.82479369,0.00022222,2]
[365761309,1749886242089,-835.41710878,0.00022222,2]
[365761310,1749886242098,-168.0,0.0002226,2]
[365761311,1749886242108,-168.0,0.00022292,2]
[365761313,1749886242117,-168.0,0.00022293,2]
[365761314,1749886242127,-1376.20692931,0.00022314,7]
[365761316,1749886242137,-807.90356575,0.00022385,2]
[365761317,1749886242146,-1376.20692931,0.00022417,7]
[365761318,1749886242156,-3039.6,0.00022433,2]
[365761319,1749886242165,-1109.04,0.00022455,3]
[365761320,1749886242175,-460.0,0.00022465,4]
[365761321,1749886242184,-460.0,0.00022465,4]
[365761322,1749886242194,-335.7,0.00022465,2]
[365761323,1749886242203,-460.0,0.00022465,4]
[365761324,1749886242214,-1009.33,0.00022465,4]
[365761325,1749886242223,-460.0,0.00022465,4]
[365761326,1749886242233,-460.0,0.00022465,4]
[365761327,1749886242243,-753.81,0.00022465,4]
[365761328,1749886242253,-521.99,0.00022465,4]
[365761329,1749886242263,-996.51,0.00022465,4]
[365761330,1749886242273,-460.0,0.00022465,4]
[365761331,1749886242282,-460.0,0.00022465,4]
[365761332,1749886242291,-815.38,0.00022465,4]
[365761333,1749886242301,-460.0,0.00022465,4]
[365761334,1749886242311,-460.0,0.00022465,4]
[365761335,1749886242321,-498.76,0.00022465,4]
[365761336,1749886242330,-4245.83,0.00022465,4]
[365761337,1749886242339,-460.0,0.00022465,4]
[365761338,1749886242349,-1010.94,0.00022465,4]
[365761339,1749886242358,-580.63,0.00022465,4]
[365761340,1749886242368,-662.23,0.00022465,4]
[365761341,1749886242377,-1448.55,0.00022465,4]
[365761342,1749886242387,-460.0,0.00022465,4]
[365761343,1749886242397,-929.11,0.00022465,4]
[365761344,1749886242406,-526.27,0.00022465,4]
[365761345,1749886242416,-350.0,0.00022466,2]
[365761346,1749886242426,-500.0,0.00022466,2]
[365761347,1749886242436,-500.0,0.00022466,2]
[365761348,1749886242445,-500.0,0.00022466,2]
[365761349,1749886242455,-500.0,0.00022466,2]
[365761350,1749886242465,-500.0,0.00022466,2]
[365761351,1749886242475,-335.0,0.00022466,2]
[365761352,1749886242485,-1003.66755232,0.00022521,2]
[365761353,1749886242494,-519.57523852,0.00022521,2]
[365761354,1749886242504,-500.0,0.00022521,2]
[365761355,1749886242514,-1376.20692931,0.00022521,7]
[365761356,1749886242524,-168.0,0.00022593,2]
[365761357,1749886242534,-3767.74,0.000226,7]
[365761358,1749886242543,-1750.456,0.0002262,2]
[365761359,1749886242553,-207.4,0.0002262,2]
[365761360,1749886242564,-1376.20692931,0.00022624,7]
[365761361,1749886242573,-168.0,0.00022633,2]
[365761362,1749886242582,-296.48612242,0.00022647,2]
[365761363,1749886242593,-1376.20692931,0.00022728,7]
[365761364,1749886242602,-554.52,0.00022729,3]
[365761365,1749886242612,-237.0,0.00022731,2]
[365761366,1749886242622,-337.0,0.00022736,2]
[365761367,1749886242632,-460.0,0.00022739,4]
[365761368,1749886242641,-460.0,0.00022739,4]
[365761369,1749886242651,-460.0,0.00022739,4]
[365761370,1749886242663,-1009.33,0.00022739,4]
[365761371,1749886242673,-460.0,0.00022739,4]
[365761372,1749886242682,-460.0,0.00022739,4]
[365761373,1749886242691,-753.81,0.00022739,4]
[365761374,1749886242702,-521.99,0.00022739,4]
[365761375,1749886242711,-996.51,0.00022739,4]
[365761376,1749886242722,-177.86250209,0.00022739,4]
[365761377,1749886242731,-206.07649988,0.00022739,4]
[365761378,1749886242741,-815.38,0.00022739,4]
[365761379,1749886242752,-460.0,0.00022739,4]
[365761380,1749886242763,-476.21292204,0.00022739,4]
[365761381,1749886242773,-498.76,0.00022739,4]
[365761382,1749886242783,-4245.83,0.00022739,4]
[365761383,1749886242792,-460.0,0.00022739,4]
[365761384,1749886242802,-1010.94,0.00022739,4]
[365761385,1749886242811,-580.63,0.00022739,4]
[365761386,1749886242821,-662.23,0.00022739,4]
[365761387,1749886242831,-1448.55,0.00022739,4]
[365761388,1749886242840,-460.0,0.00022739,4]
[365761389,1749886242850,-929.11,0.00022739,4]
[365761390,1749886242860,-526.27,0.00022739,4]
[365761391,1749886242869,-168.0,0.00022741,2]
[365761392,1749886242878,-168.0,0.00022744,2]
[365761393,1749886242888,-168.0,0.00022768,2]
[365761394,1749886242897,-168.0,0.00022783,2]
[365761395,1749886242907,-501.54253158,0.00022793,2]
[365761396,1749886242916,-500.79880931,0.00022793,2]
[365761397,1749886242926,-500.0,0.00022793,2]
[365761398,1749886242936,-242.91572388,0.00022793,2]
[365761399,1749886242945,-500.76973816,0.00022793,2]
[365761400,1749886242956,-500.0,0.00022793,2]
[365761401,1749886242966,-500.0,0.00022793,2]
[365761402,1749886242975,-500.0,0.00022793,2]
[365761403,1749886242985,-500.0,0.00022793,2]
[365761404,1749886242994,-500.0,0.00022793,2]
[365761405,1749886243006,-1376.20692931,0.00022831,8]
[365761406,1749886243015,-1157.966907,0.00022857,2]
[365761407,1749886243025,-1376.20692931,0.00022934,8]
[365761408,1749886243035,-807.90356575,0.00022942,2]
[365761409,1749886243044,-250.0,0.0002295,2]
[365761410,1749886243054,-500.0,0.0002296,2]
[365761412,1749886243064,-501.19077422,0.0002296,2]
[365761413,1749886243073,-152.84253909,0.0002296,2]
[365761414,1749886243083,-5963.37362922,0.00023,2]
[365761415,1749886243093,-826.81317095,0.00023,2]
[365761416,1749886243103,-6020.85196694,0.00023,3]
[365761418,1749886243113,-15651.68263261,0.00023,2]
[365761419,1749886243123,-79895.66762674,0.00023,20]
[365761420,1749886243132,-160.0,0.00023012,2]
[365761421,1749886243142,-460.0,0.00023013,4]
[365761422,1749886243151,-460.0,0.00023013,4]
[365761423,1749886243161,-466.30035663,0.00023013,4]
[365761424,1749886243171,-1009.33,0.00023013,4]
[365761425,1749886243181,-269.5956371,0.00023013,4]
[365761426,1749886243191,-460.0,0.00023013,4]
[365761427,1749886243201,-753.81,0.00023013,4]
[365761428,1749886243211,-521.99,0.00023013,4]
[365761429,1749886243221,-996.51,0.00023013,4]
[365761430,1749886243230,-815.38,0.00023013,4]
[365761431,1749886243239,-460.0,0.00023013,4]
[365761432,1749886243249,-498.76,0.00023013,4]
[365761433,1749886243259,-4245.83,0.00023013,4]
[365761434,1749886243268,-460.0,0.00023013,4]
[365761435,1749886243278,-1010.94,0.00023013,4]
[365761436,1749886243288,-580.63,0.00023013,4]
[365761437,1749886243297,-662.23,0.00023013,4]
[365761439,1749886243306,-1448.55,0.00023013,4]
[365761441,1749886243316,-460.0,0.00023013,4]
[365761442,1749886243326,-929.11,0.00023013,4]
[365761443,1749886243335,-526.27,0.00023013,4]
[365761444,1749886243346,-1376.20692931,0.00023038,8]
[365761445,1749886243355,-500.0,0.00023073,2]
[365761446,1749886243365,-574.97211964,0.00023073,2]
[365761447,1749886243375,-110336.36,0.000231,7]
[365761448,1749886243384,-151.0,0.0002313,7]
[365761449,1749886243394,-306.883459,0.0002313,7]
[365761450,1749886243403,-306.883459,0.0002313,7]
[365761451,1749886243412,-151.0,0.00023141,7]
[365761452,1749886243422,-214.399242,0.00023141,7]
[365761453,1749886243431,-214.399242,0.00023141,7]
[365761454,1749886243441,-609.966794,0.00023141,7]
[365761455,1749886243450,-151.0,0.00023141,7]
[365761457,1749886243459,-609.966794,0.00023141,7]
[365761458,1749886243469,-1376.20692931,0.00023141,8]
[365761460,1749886243478,-296.48612242,0.00023199,2]
[365761461,1749886243488,-78823.23,0.000232,2]
[365761462,1749886243497,-195.303836,0.00023221,7]
[365761463,1749886243507,-195.303836,0.00023221,7]
[365761464,1749886243517,-277.935539,0.00023221,7]
[365761465,1749886243527,-277.935539,0.00023221,7]
[365761466,1749886243537,-165.57654101,0.00023233,2]
[365761467,1749886243546,-1376.20692931,0.00023245,8]
[365761469,1749886243556,-521.30738138,0.00023279,5]
[365761471,1749886243565,-460.0,0.00023287,4]
[365761472,1749886243574,-460.0,0.00023287,4]
[365761473,1749886243585,-1009.33,0.00023287,4]
[365761474,1749886243594,-460.0,0.00023287,4]
[365761475,1749886243605,-753.81,0.00023287,4]
[365761476,1749886243615,-521.99,0.00023287,4]
[365761477,1749886243625,-996.51,0.00023287,4]
[365761478,1749886243635,-815.38,0.00023287,4]
[365761479,1749886243644,-479.23088691,0.00023287,4]
[365761480,1749886243656,-498.76,0.00023287,4]
[365761481,1749886243669,-4245.83,0.00023287,4]
[365761482,1749886243678,-460.0,0.00023287,4]
[365761483,1749886243688,-1010.94,0.00023287,4]
[365761484,1749886243698,-580.63,0.00023287,4]
[365761485,1749886243708,-662.23,0.00023287,4]
[365761486,1749886243718,-1448.55,0.00023287,4]
[365761487,1749886243728,-460.0,0.00023287,4]
[365761488,1749886243737,-929.11,0.00023287,4]
[365761489,1749886243747,-526.27,0.00023287,4]
[365761490,1749886243757,-9091.93052012,0.00023337,2]
[365761491,1749886243766,-1000.0,0.00023341,2]
[365761492,1749886243775,-701.86789802,0.00023341,2]
[365761493,1749886243785,-1000.0,0.00023341,2]
[365761494,1749886243794,-1000.0,0.00023341,2]
[365761495,1749886243804,-1000.0,0.00023341,2]
[365761496,1749886243813,-1000.0,0.00023341,2]
[365761497,1749886243823,-1376.20692931,0.00023348,9]
[365761498,1749886243834,-9012.8554264,0.0002335,2]
[365761499,1749886243845,-1154.0,0.000234,7]
[365761500,1749886243856,-1376.20692931,0.00023452,9]
[365761501,1749886243866,-4559.4,0.00023452,2]
[365761502,1749886243879,-502.04104999,0.0002348,2]
[365761503,1749886243890,-500.0,0.0002348,2]
[365761504,1749886243900,-501.06245016,0.0002348,2]
[365761505,1749886243910,-500.0,0.000235,2]
[365761506,1749886243919,-807.90356575,0.000235,2]
[365761507,1749886243929,-1000.0,0.00023508,2]
[365761508,1749886243939,-165.57654102,0.00023534,2]
[365761509,1749886243950,-165.57654101,0.00023534,2]
[365761510,1749886243960,-1376.20692931,0.00023555,9]
[365761511,1749886243972,-460.0,0.00023561,4]
[365761512,1749886243982,-460.0,0.00023561,4]
[365761513,1749886243992,-1009.33,0.00023561,4]
[365761514,1749886244001,-519.68937054,0.00023561,4]
[365761515,1749886244011,-753.81,0.00023561,4]
[365761516,1749886244022,-521.99,0.00023561,4]
[365761517,1749886244034,-996.51,0.00023561,4]
[365761518,1749886244047,-815.38,0.00023561,4]
[365761519,1749886244057,-498.76,0.00023561,4]
[365761520,1749886244066,-4245.83,0.00023561,4]
[365761521,1749886244075,-460.0,0.00023561,4]
[365761522,1749886244084,-151.0,0.00023561,7]
[365761523,1749886244094,-1010.94,0.00023561,4]
[365761524,1749886244103,-580.63,0.00023561,4]
[365761525,1749886244112,-662.23,0.00023561,4]
[365761526,1749886244121,-1448.55,0.00023561,4]
[365761527,1749886244131,-460.0,0.00023561,4]
[365761528,1749886244140,-929.11,0.00023561,4]
[365761529,1749886244149,-526.27,0.00023561,4]
[365761530,1749886244160,-237.0,0.00023587,2]
[365761531,1749886244171,-200.0,0.00023592,2]
[365761532,1749886244181,-49320.5345563,0.000236,2]
[365761533,1749886244190,-500.0,0.000236,2]
[365761534,1749886244200,-1000.0,0.00023621,2]
[365761535,1749886244210,-600.0,0.00023631,2]
[365761536,1749886244306,-500.0,0.00023656,2]
[365761537,1749886244316,-1376.20692931,0.00023659,9]
[365761538,1749886244325,-200.0,0.00023672,2]
[365761539,1749886244335,-3767.74,0.000237,7]
[365761540,1749886244344,-151.0,0.0002372,7]
[365761541,1749886244353,-306.883459,0.0002372,7]
[365761542,1749886244364,-306.883459,0.0002372,7]
[365761543,1749886244374,-237.0,0.0002373,2]
[365761544,1749886244384,-587.0,0.00023735,2]
[365761545,1749886244394,-151.0,0.0002375,7]
[365761546,1749886244403,-214.399242,0.0002375,7]
[365761547,1749886244413,-214.399242,0.0002375,7]
[365761548,1749886244422,-609.966794,0.0002375,7]
[365761549,1749886244431,-236.182842,0.0002375,7]
[365761550,1749886244441,-609.966794,0.0002375,7]
[365761551,1749886244451,-296.48612242,0.00023752,2]
[365761552,1749886244460,-1376.20692931,0.00023762,9]
[365761553,1749886244470,-600.0,0.00023773,2]
[365761554,1749886244479,-500.0,0.00023773,2]
[365761555,1749886244489,-500.0,0.00023773,2]
[365761556,1749886244499,-500.0,0.00023773,2]
[365761557,1749886244508,-509.52386993,0.00023773,2]
[365761558,1749886244518,-576454.80954644,0.0002378,5]
[365761559,1749886244528,-151.0,0.0002378,7]
[365761560,1749886244537,-195.303836,0.000238,7]
[365761561,1749886244547,-195.303836,0.000238,7]
[365761562,1749886244556,-277.935539,0.000238,7]
[365761563,1749886244565,-277.935539,0.000238,7]
[365761564,1749886244575,-2023.41,0.000238,2]
[365761565,1749886244584,-13366.24786553,0.000238,2]
[365761566,1749886244594,-335626.90417057,0.000238,3]
[365761567,1749886244603,-160.0,0.000238,3]
[365761568,1749886244612,-151.0,0.000238,7]
[365761569,1749886244621,-460.0,0.00023835,4]
[365761570,1749886244633,-601.51030635,0.00023835,4]
[365761571,1749886244643,-1009.33,0.00023835,4]
[365761572,1749886244656,-753.81,0.00023835,4]
[365761573,1749886244666,-521.99,0.00023835,4]
[365761574,1749886244676,-996.51,0.00023835,4]
[365761575,1749886244686,-815.38,0.00023835,4]
[365761576,1749886244695,-498.76,0.00023835,4]
[365761577,1749886244705,-4245.83,0.00023835,4]
[365761578,1749886244714,-460.0,0.00023835,4]
[365761579,1749886244724,-1010.94,0.00023835,4]